fUSD/lending_fUSD_20240114
["ID","MTS","AMOUNT","RATE_DAILY","PERIOD"]
[311560959,1705244049468,958.09273655,0.0002,2]
[311560960,1705244052456,652.25493337,0.00012,30]
[311560961,1705244163172,454.45788398,0.00012,2]
[311560962,1705244164314,263.13667066,0.00012,2]
[311560963,1705244197799,324.31270881,0.00022156,2]
[311560964,1705244197819,572.26471637,0.00022156,2]
[311560965,1705244270928,151.12,0.00020378,2]
[311560966,1705244323096,155.0,0.00020378,2]
[311560967,1705244337097,204.35761727,0.00020378,2]
[311560968,1705244348063,303.07,0.00022216,2]
[311560969,1705244357430,-208.84882825,0.00022308,2]
[311560970,1705244357453,-1791.15117175,0.00022384,2]
[311560971,1705244358053,-2000.0,0.00022384,2]
[311560972,1705244358585,-2000.0,0.00022384,2]
[311560973,1705244359098,-415.49097244,0.00022384,2]
[311560974,1705244497555,-1000.0,0.00022385,2]
[311560975,1705244592087,200.0,0.00022206,2]
[311560976,1705244593942,200.0,0.00022208,2]
[311560977,1705244594178,800.0,0.00022206,2]
[311560978,1705244667260,-163.82,0.00022405,2]
[311560979,1705244667283,-235.59849038,0.00022583,3]
[311560980,1705244667305,-159.95,0.00022601,2]
[311560981,1705244667326,-159.3,0.00022679,2]
[311560982,1705244667347,-150.0,0.00022694,2]
[311560983,1705244667369,-207.0,0.00022827,2]
[311560984,1705244667391,-327.50869988,0.00022896,2]
[311560985,1705244667411,-150.0,0.00022897,2]
[311560986,1705244667432,-73953.20037902,0.00022897,2]
[311560987,1705244667451,-17892.6441,0.00022898,2]
[311560988,1705244667471,-1139.25474807,0.00022899,2]
[311560989,1705244667490,-250.0,0.000229,2]
[311560990,1705244667511,-29564.21446125,0.000229,2]
[311560991,1705244667531,-555.01879983,0.000229,2]
[311560992,1705244667549,-4815.0559042,0.00022995,2]
[311560993,1705244667570,-13911.9704434,0.00022995,2]
[311560994,1705244667589,-278.6280331,0.00022995,2]
[311560995,1705244667607,-3425.9123988,0.00022997,4]
[311560996,1705244667627,-1137.11821991,0.00022997,2]
[311560997,1705244667648,-779.78925289,0.00022997,2]
[311560998,1705244667668,-8668.71,0.00022997,2]
[311560999,1705244667688,-761.99,0.00022997,2]
[311561000,1705244667708,-11313.31606927,0.00022997,2]
[311561001,1705244699449,-2000.0,0.00022997,2]
[311561002,1705244701605,-2000.0,0.00022997,2]
[311561003,1705244702638,-2000.0,0.00022997,2]
[311561004,1705244779304,350.23,0.00022344,2]
[311561005,1705244835166,34.27902756,0.0002026,2]
[311561006,1705244835188,122.39097244,0.0002026,2]
[311561007,1705244913765,206.0,0.00021827,2]
[311561008,1705245029717,840.0,0.00022067,2]
[311561029,1705245031894,-508.34,0.00022537,2]
[311561030,1705245037965,-578.65487981,0.00022537,2]
[311561031,1705245037975,-165.33556699,0.00022586,3]
[311561032,1705245037984,-33733.67881694,0.00022761,2]
[311561033,1705245037993,-19114.79827511,0.00022762,2]
[311561034,1705245038003,-12815.09895429,0.00022765,2]
[311561035,1705245038023,-10064.45375108,0.00022765,2]
[311561045,1705245043389,831.60902756,0.00022259,2]
[311561046,1705245043412,628.469761,0.00022259,2]
[311561047,1705245045904,-358.1548801,0.00022483,2]
[311561048,1705245046072,-1101.92390846,0.00022483,2]
[311561049,1705245046081,-1039.62609154,0.00022765,2]
[311561050,1705245046104,-4041.17914708,0.00022765,2]
[311561051,1705245046113,-225.29267651,0.00022766,4]
[311561052,1705245046122,-16462.19588246,0.00022768,2]
[311561053,1705245046131,-514.40879808,0.00022769,2]
[311561054,1705245046140,-24034.82225073,0.0002277,2]
[311561055,1705245046355,-31803.25237605,0.0002277,2]
[311561056,1705245046365,-153.0,0.00022793,2]
[311561057,1705245046374,-26116.8832,0.00022897,2]
[311561058,1705245046383,-31809.7403,0.00022898,2]
[311561059,1705245046392,-184.60091716,0.00022898,2]
[311561060,1705245046402,-184.60091715,0.00022899,2]
[311561061,1705245046411,-250.0,0.000229,2]
[311561062,1705245046420,-185.00626661,0.000229,2]
[311561063,1705245046429,-500.0,0.000229,2]
[311561064,1705245046439,-674.15028914,0.000229,2]
[311561065,1705245046448,-215.35384188,0.00022975,2]
[311561066,1705245046458,-162.5,0.0002298,2]
[311561067,1705245046467,-274.21522851,0.00022986,2]
[311561068,1705245046477,-3673.63724606,0.00022996,4]
[311561069,1705245046486,-802.87317701,0.00022997,2]
[311561070,1705245046495,-157.28891017,0.00022998,2]
[311561071,1705245046505,-174.65977758,0.00022998,2]
[311561072,1705245046514,-158.51725912,0.00022998,2]
[311561073,1705245046523,-155.0,0.00022998,2]
[311561074,1705245046532,-1913.37819897,0.00022998,2]
[311561075,1705245046542,-1197.98121798,0.00022998,2]
[311561076,1705245046552,-1023.00930679,0.00022998,2]
[311561077,1705245046561,-6432.2832188,0.00022998,2]
[311561078,1705245046570,-24322.18719466,0.00022998,2]
[311561079,1705245046579,-3141.15835728,0.00022998,2]
[311561080,1705245046589,-473.97561772,0.00022998,2]
[311561081,1705245046598,-318.31330327,0.00022998,2]
[311561082,1705245046608,-1707.63370673,0.00022998,2]
[311561083,1705245046617,-2137.45783782,0.00022998,2]
[311561084,1705245046627,-2605.00000774,0.00022998,2]
[311561085,1705245046637,-33703.03943944,0.00022998,2]
[311561086,1705245046646,-2265.8208508,0.00022998,2]
[311561087,1705245046656,-2617.16595295,0.00022998,2]
[311561088,1705245046665,-2527.24759868,0.00022998,2]
[311561089,1705245046675,-3000.79338492,0.00022998,2]
[311561090,1705245046686,-348.35164608,0.00022999,2]
[311561091,1705245046695,-3504.5203992,0.00022999,2]
[311561092,1705245046705,-300.02,0.00022999,2]
[311561093,1705245046714,-3292.32224499,0.00022999,2]
[311561094,1705245046723,-1007.6671,0.00022999,2]
[311561095,1705245046733,-118333.39505128,0.00023,2]
[311561096,1705245046897,1075.3583249,0.00022315,2]
[311561097,1705245343169,151.03,0.0002029,2]
[311561098,1705245454465,328.0,0.00022146,2]
[311561099,1705245587691,172.91,0.00022147,2]
[311561100,1705245710789,900.0,0.000223,8]
[311561101,1705245759250,571.09079843,0.000223,2]
[311561102,1705245776484,91.99920157,0.00022399,2]
[311561103,1705245778572,151.16,0.00022229,2]
[311561104,1705245806659,159.24,0.00020062,2]
[311561105,1705245806717,159.24,0.00022326,2]
[311561106,1705245837097,565.62,0.00021999,2]
[311561107,1705245849843,1545.83,0.00031,120]
[311561108,1705245894053,737.6,0.00021984,2]
[311561109,1705245968448,2337.65,0.0003,90]
[311561110,1705245989717,532.01558641,0.00021984,2]
[311561111,1705245990652,5183.28447778,0.00021984,2]
[311561112,1705246000782,207.28904547,0.00021984,2]
[311561113,1705246014392,616.97420109,0.00020465,2]
[311561114,1705246015300,3185.21463735,0.00022074,2]
[311561115,1705246018536,419.33476208,0.00022074,2]
[311561116,1705246030860,900.0,0.000222,8]
[311561117,1705246032964,1900.0,0.000223,8]
[311561118,1705246053331,347.8505,0.00022073,2]
[311561120,1705246117664,151.49,0.0002176,2]
[311561121,1705246117875,151.49,0.00021905,2]
[311561122,1705246118302,151.49,0.0002205,2]
[311561123,1705246118681,151.49,0.00022195,2]
[311561124,1705246118915,151.49,0.0002234,2]
[311561125,1705246123450,2000.0,0.00021721,2]
[311561126,1705246124488,196.79653433,0.00022049,2]
[311561127,1705246173676,1040.94397812,0.00022389,2]
[311561128,1705246174717,2318.12607023,0.00022389,2]
[311561129,1705246175400,155.0,0.00022389,2]
[311561130,1705246176500,269.80513324,0.00022389,2]
[311561132,1705246185806,2899.70304819,0.00022389,2]
[311561133,1705246187402,190.94965879,0.00022286,2]
[311561134,1705246192708,477.28,0.00021607,2]
[311561135,1705246196735,4484.49790015,0.00022389,2]
[311561136,1705246198214,3326.78039808,0.00022389,2]
[311561137,1705246198685,215.397955,0.00022389,2]
[311561138,1705246202078,150.0,0.00022389,2]
[311561139,1705246204575,6504.0,0.00022389,2]
[311561141,1705246218701,215.397955,0.00022368,2]
[311561142,1705246219567,842.51048405,0.00022389,2]
[311561143,1705246221194,30774.82508981,0.00022389,2]
[311561144,1705246222876,939.95776854,0.00022389,2]
[311561145,1705246224232,1202.71070965,0.00022389,2]
[311561146,1705246224826,1708.02080546,0.00022389,2]
[311561147,1705246225258,532.51217277,0.00022389,2]
[311561148,1705246226329,10548.52020323,0.00022389,2]
[311561149,1705246226503,171.76196132,0.00022389,2]
[311561150,1705246227179,581.48502557,0.00022389,2]
[311561151,1705246228664,42970.8731581,0.00022389,2]
[311561152,1705246228767,155.0,0.00022389,2]
[311561153,1705246229074,196.79653433,0.00022389,2]
[311561154,1705246230339,2143.98939105,0.00022389,2]
[311561198,1705246231932,-155.0,0.0002239,2]
[311561200,1705246231947,-155.0,0.0002239,2]
[311561203,1705246231962,-189.95,0.0002239,2]
[311561206,1705246231981,-304.3107926,0.0002239,2]
[311561208,1705246231996,-136.6892074,0.0002239,2]
[311561211,1705246232014,-500.0,0.0002239,2]
[311561214,1705246232035,-3607.3954055,0.0002239,2]
[311561217,1705246232050,-474.07011327,0.0002239,2]
[311561220,1705246232065,-481.77674267,0.0002239,2]
[311561222,1705246232079,-4484.49790015,0.0002239,2]
[311561223,1705246232094,-919.01856496,0.0002239,2]
[311561225,1705246232108,-202.52838964,0.0002239,2]
[311561227,1705246232122,-309.79583088,0.0002239,2]
[311561230,1705246232138,-250.02290447,0.0002239,2]
[311561232,1705246232152,-472.70124021,0.0002239,2]
[311561234,1705246232167,-417.6160908,0.0002239,2]
[311561235,1705246232182,-161.5917949,0.0002239,2]
[311561236,1705246232197,-376.44759867,0.0002239,2]
[311561237,1705246232212,-386.38607478,0.0002239,2]
[311561238,1705246232228,-248.27674602,0.0002239,2]
[311561239,1705246232243,-213.88151203,0.0002239,2]
[311561240,1705246232258,-3055.26979122,0.0002239,2]
[311561241,1705246232272,-362.28007638,0.0002239,2]
[311561242,1705246232288,-279.00084549,0.0002239,2]
[311561243,1705246232302,-155.33795815,0.0002239,2]
[311561244,1705246232318,-2304.07734728,0.0002239,2]
[311561245,1705246232333,-1256.28194344,0.0002239,2]
[311561246,1705246232348,-448.74512909,0.0002239,2]
[311561247,1705246232368,-1365.3,0.0002239,2]
[311561248,1705246232387,-524.59066006,0.0002239,2]
[311561249,1705246232404,-910.3533981,0.0002239,2]
[311561250,1705246232468,-332.56664911,0.0002239,2]
[311561251,1705246232508,-468.5699798,0.0002239,2]
[311561252,1705246232527,-1031.76632145,0.0002239,2]
[311561253,1705246232546,-641.78023561,0.0002239,2]
[311561254,1705246232564,-464.0253,0.0002239,2]
[311561255,1705246232585,-3363.08159332,0.0002239,2]
[311561256,1705246232600,-642.25036897,0.0002239,2]
[311561257,1705246234136,-4561.824,0.0002239,2]
[311561258,1705246234148,-339.95296193,0.0002239,2]
[311561259,1705246234160,-335.54621629,0.0002239,2]
[311561260,1705246234189,-561.46022541,0.0002239,2]
[311561261,1705246234200,-928.53687171,0.0002239,2]
[311561262,1705246234341,-5852.48110901,0.0002239,2]
[311561263,1705246234351,-265.185965,0.0002239,2]
[311561264,1705246234360,-155.0,0.0002239,2]
[311561265,1705246234370,-15.77192599,0.0002239,2]
[311561266,1705246234381,-139.22807401,0.0002239,2]
[311561267,1705246234391,-242.15573671,0.0002239,2]
[311561268,1705246234400,-403.85382049,0.0002239,2]
[311561269,1705246234410,-219.21918587,0.0002239,2]
[311561270,1705246234419,-307.5766778,0.0002239,2]
[311561271,1705246234429,-207.66013193,0.0002239,2]
[311561272,1705246234438,-155.43398215,0.0002239,2]
[311561273,1705246234448,-465.3033248,0.0002239,2]
[311561274,1705246234457,-1144.41503177,0.0002239,2]
[311561275,1705246234559,-71.22510969,0.0002239,2]
[311561276,1705246234572,-956.9078761,0.0002239,2]
[311561277,1705246234585,-633.12774722,0.0002239,2]
[311561278,1705246234643,-1518.80576733,0.0002239,2]
[311561279,1705246234653,-199.17949385,0.0002239,2]
[311561280,1705246234664,-1365.96687474,0.0002239,2]
[311561281,1705246234676,-303.19299995,0.0002239,2]
[311561282,1705246234689,-3220.3834898,0.0002239,2]
[311561283,1705246234698,-400.0,0.0002239,2]
[311561284,1705246234708,-155.0,0.0002239,2]
[311561285,1705246234718,-353.98495384,0.0002239,2]
[311561286,1705246234727,-155.0,0.0002239,2]
[311561287,1705246234737,-1135.27978758,0.0002239,2]
[311561288,1705246234749,-285.07168855,0.0002239,2]
[311561289,1705246234758,-362.28773431,0.00022391,2]
[311561290,1705246234889,1428.03589514,0.00022389,2]
[311561291,1705246234948,16754.29723239,0.00022389,2]
[311561292,1705246235689,215.397955,0.00022368,2]
[311561294,1705246237899,-2617.16595295,0.0002239,2]
[311561295,1705246237908,-840.65042856,0.0002239,2]
[311561296,1705246237918,-650.93242009,0.0002239,2]
[311561297,1705246237928,-2532.91924654,0.00022391,2]
[311561298,1705246237937,-116336.95268382,0.00022392,2]
[311561299,1705246237946,-1000.0,0.00022398,2]
[311561300,1705246237956,-911.65106347,0.00022398,2]
[311561301,1705246237966,-269.55846648,0.00022398,2]
[311561302,1705246237975,-1040.94397812,0.00022399,2]
[311561303,1705246237985,-100000.0,0.000224,2]
[311561304,1705246237995,-336.0320102,0.000224,2]
[311561305,1705246238005,-1022.41555306,0.000224,2]
[311561306,1705246238015,-1031.4311,0.000224,2]
[311561307,1705246238024,-8473.8505,0.000224,2]
[311561308,1705246238034,-2800.0,0.000224,8]
[311561309,1705246238044,-1022.415553,0.00022471,2]
[311561310,1705246238054,-151.49,0.00022485,2]
[311561311,1705246238064,-255.45391365,0.00022493,4]
[311561312,1705246238074,-167.58210241,0.00022495,2]
[311561313,1705246238083,-167.58210241,0.00022495,2]
[311561314,1705246238093,-167.58210241,0.00022495,2]
[311561315,1705246238102,-1254.8177837,0.00022497,2]
[311561316,1705246238113,-765.80999369,0.00022497,2]
[311561317,1705246238123,-155.0,0.00022497,2]
[311561318,1705246238133,-301.90910224,0.00022497,2]
[311561319,1705246238143,-19114.79827511,0.000225,2]
[311561320,1705246238154,-686.83,0.000225,2]
[311561321,1705246238163,-9999.99,0.000225,2]
[311561322,1705246238173,-999.99,0.000225,2]
[311561323,1705246238183,-1872.14,0.000225,2]
[311561324,1705246238192,-3800.0,0.000225,8]
[311561325,1705246238201,-1022.415553,0.00022543,2]
[311561326,1705246238210,-188.17968247,0.0002259,3]
[311561327,1705246238219,-4700.0,0.000226,8]
[311561328,1705246238229,-1022.415553,0.00022614,2]
[311561329,1705246238238,-151.49,0.0002263,2]
[311561330,1705246238247,-2500.0,0.00022664,2]
[311561331,1705246238257,-500.0,0.00022664,2]
[311561332,1705246238266,-1203.11914152,0.00022669,2]
[311561333,1705246238276,-4304.0,0.0002267,2]
[311561334,1705246238285,-1022.415553,0.00022686,2]
[311561335,1705246238294,-900.0,0.000227,8]
[311561336,1705246238304,-1022.415553,0.00022757,2]
[311561337,1705246238313,-249.5354655,0.00022763,2]
[311561338,1705246238322,-18947.15201199,0.00022764,2]
[311561339,1705246238332,-203.56919,0.0002277,2]
[311561340,1705246238342,-151.49,0.00022775,2]
[311561341,1705246238351,-455.5872,0.00022798,2]
[311561342,1705246238361,-5000.0,0.00022799,2]
[311561343,1705246238370,-7689.7447,0.000228,2]
[311561344,1705246238379,-187.18634131,0.000228,2]
[311561345,1705246238388,-379.34,0.000228,2]
[311561347,1705246238398,-4768.25609419,0.000228,2]
[311561349,1705246238407,-406.35659284,0.000228,2]
[311561351,1705246238416,-337.15361085,0.000228,2]
[311561353,1705246238425,-900.0,0.000228,8]
[311561355,1705246238434,-800.0,0.00022816,2]
[311561357,1705246238443,-1022.415553,0.00022829,2]
[311561359,1705246238452,-4768.25609417,0.0002285,2]
[311561361,1705246238461,-406.35659282,0.0002285,2]
[311561363,1705246238471,-337.15361083,0.0002285,2]
[311561365,1705246238480,-165.85748835,0.00022885,2]
[311561367,1705246238489,-245000.0,0.00022895,2]
[311561369,1705246238497,-2378.268,0.00022895,2]
[311561371,1705246238507,-2806.0813,0.00022898,2]
[311561373,1705246238515,-7510.2338,0.00022898,2]
[311561375,1705246238524,-73778.26030025,0.00022899,2]
[311561377,1705246238537,-280.0,0.00022899,2]
[311561396,1705246238709,-217.71520853,0.0002239,2]
[311561398,1705246238719,-263.98887918,0.00022899,2]
[311561400,1705246238730,-2579.75145553,0.00022899,2]
[311561414,1705246238858,-1969.855545,0.00022899,2]
[311561420,1705246238905,-575623.38215815,0.00022899,2]
[311561422,1705246238914,-856180.29692783,0.00022899,2]
[311561424,1705246238923,-250.0,0.000229,2]
[311561425,1705246238933,-52721.38617862,0.000229,2]
[311561426,1705246238942,-4768.25609417,0.000229,2]
[311561427,1705246238951,-406.35659282,0.000229,2]
[311561428,1705246238961,-337.15361083,0.000229,2]
[311561429,1705246238970,-1022.415553,0.000229,2]
[311561430,1705246238980,-900.0,0.000229,8]
[311561431,1705246238990,-41627.0,0.00022904,2]
[311561432,1705246238999,-151.49,0.0002292,2]
[311561433,1705246239013,-419.95,0.00022959,2]
[311561435,1705246239022,-565.62,0.00022978,2]
[311561437,1705246239032,-500.0,0.0002298,2]
[311561439,1705246239041,-1888.06243048,0.00022993,2]
[311561441,1705246239051,-378.13396296,0.00022993,2]
[311561443,1705246239061,-220.79925735,0.00022993,2]
[311561445,1705246239071,-155.0,0.00022993,2]
[311561446,1705246239080,-155.31524812,0.00022993,2]
[311561448,1705246239090,-286.33384578,0.00022993,2]
[311561450,1705246239099,-2605.00000774,0.00022993,2]
[311561452,1705246239109,-155.14895346,0.00022993,2]
[311561454,1705246239118,-155.0,0.00022993,2]
[311561456,1705246239128,-155.0,0.00022993,2]
[311561458,1705246239137,-5327.1431858,0.00022993,2]
[311561460,1705246239146,-234.89781562,0.00022993,2]
[311561462,1705246239156,-158.07035677,0.00022993,2]
[311561464,1705246239165,-158.60896714,0.00022993,2]
[311561465,1705246239175,-523.20663738,0.00022993,2]
[311561467,1705246239184,-313.91829935,0.00022994,2]
[311561469,1705246239193,-1434.04271969,0.00022994,2]
[311561471,1705246239202,-198.97051036,0.00022994,2]
[311561473,1705246239211,-236.17727712,0.00022996,2]
[311561475,1705246239221,-514.98040546,0.00022996,2]
[311561477,1705246239230,-259.87169978,0.00022996,2]
[311561479,1705246239239,-3033.8952503,0.00022996,2]
[311561481,1705246239249,-5657.9494043,0.00022996,2]
[311561483,1705246239261,-145211.1413358,0.00022996,2]
[311561485,1705246239270,-9101.1068703,0.00022996,2]
[311561487,1705246239280,-4459.4049447,0.00022996,2]
[311561489,1705246239289,-326.50306657,0.00022997,2]
[311561490,1705246239298,-155.0,0.00022998,2]
[311561492,1705246239308,-12283.43506918,0.00022998,2]
[311561493,1705246239318,-155.0,0.00022998,2]
[311561494,1705246239328,-8907.24775209,0.00022998,2]
[311561495,1705246239337,-303.94,0.00022998,2]
[311561496,1705246239347,-390.35629215,0.00022998,2]
[311561497,1705246239357,-108694.60942522,0.00022998,2]
[311561498,1705246239366,-18182.03376308,0.00022999,2]
[311561499,1705246239376,-2244.82354796,0.00022999,2]
[311561500,1705246239386,-300.02,0.00022999,2]
[311561501,1705246239397,-1855.13785864,0.00022999,2]
[311561502,1705246239406,-300.0,0.00022999,2]
[311561503,1705246239415,-300.0,0.00022999,2]
[311561504,1705246239424,-300.0,0.00022999,2]
[311561505,1705246239434,-195.9925142,0.00022999,2]
[311561506,1705246239443,-300.0,0.00022999,2]
[311561507,1705246239453,-300.0,0.00022999,2]
[311561508,1705246239463,-300.0,0.00022999,2]
[311561509,1705246239472,-300.0,0.00022999,2]
[311561510,1705246239482,-300.0,0.00022999,2]
[311561511,1705246239491,-300.0,0.00022999,2]
[311561512,1705246239500,-300.0,0.00022999,2]
[311561513,1705246239513,-535.0,0.00023,2]
[311561514,1705246239524,-2672102.70412525,0.00023,2]
[311561515,1705246239567,-17921.32597948,0.00023,2]
[311561516,1705246239579,-3804.9774055,0.00023,2]
[311561517,1705246239590,-113632.74220914,0.00023,2]
[311561518,1705246239602,-73499.14536978,0.00023,2]
[311561519,1705246239613,-38415.22822888,0.00023,2]
[311561520,1705246239626,-79201.90475029,0.00023,2]
[311561521,1705246239644,-504355.29902018,0.00023,2]
[311561522,1705246239656,-79412.95409865,0.00023,2]
[311561523,1705246239668,-7625.30154869,0.00023,2]
[311561524,1705246239827,-790.087,0.00022895,2]
[311561525,1705246239837,-841.4294132,0.00023,2]
[311561526,1705246239849,-636.9005323,0.00023,2]
[311561527,1705246239861,-4529.4,0.00023,2]
[311561528,1705246239873,-22398.9123957,0.00023,2]
[311561529,1705246239889,-565.34466925,0.00023,2]
[311561530,1705246239900,-4096.72364498,0.00023,2]
[311561531,1705246239912,-326.45,0.00023,2]
[311561532,1705246239923,-5018.87825805,0.00023,2]
[311561533,1705246239939,-696.66443536,0.00023,2]
[311561534,1705246240193,-155.49419983,0.0002239,2]
[311561535,1705246240202,-261.35697594,0.00023,2]
[311561536,1705246240239,-48530.22565021,0.00023,2]
[311561537,1705246240256,-998.80882928,0.00023,2]
[311561538,1705246240267,-540.1437836,0.00023,2]
[311561541,1705246240279,-275.96458678,0.00023,2]
[311561547,1705246240324,-5100.81464862,0.00023,2]
[311561548,1705246240336,-285.7904402,0.00023,2]
[311561549,1705246240347,-22658.63600001,0.00023,2]
[311561550,1705246240359,-2029.04967703,0.00023,2]
[311561551,1705246240384,-44818.90195345,0.00023,2]
[311561554,1705246241354,-531.55896732,0.0002239,2]
[311561555,1705246241364,-30.88954701,0.00022799,2]
[311561559,1705246241893,-340.66810795,0.00022799,2]
[311561560,1705246241902,-2773.59262798,0.00022799,2]
[311561561,1705246241912,-3446913.26344567,0.00023,2]
[311561562,1705246241921,-377498.54537996,0.00023,2]
[311561563,1705246241930,-2778575.41974884,0.00023,2]
[311561564,1705246241939,-155.0,0.00023,2]
[311561565,1705246241949,-50510.78554689,0.00023,2]
[311561566,1705246241958,-155.0,0.00023,2]
[311561567,1705246241968,-360.58392018,0.00023,2]
[311561568,1705246241977,-500.0,0.00023,2]
[311561569,1705246241986,-247.01828226,0.00023,2]
[311561570,1705246241995,-165.46285681,0.00023,2]
[311561571,1705246242005,-851.03956512,0.00023,4]
[311561572,1705246242014,-7417.37716852,0.00023,2]
[311561573,1705246242023,-650897.42713094,0.00023,2]
[311561574,1705246242033,-2000.0,0.00023,2]
[311561575,1705246242042,-200.0,0.00023,2]
[311561576,1705246242051,-2000.0,0.00023,2]
[311561577,1705246242060,-200.0,0.00023,2]
[311561578,1705246242069,-151.0,0.00023,7]
[311561579,1705246242078,-151.0,0.00023,7]
[311561580,1705246242087,-151.0,0.00023,7]
[311561581,1705246242096,-151.0,0.00023,7]
[311561582,1705246242105,-151.0,0.00023,7]
[311561583,1705246242114,-151.0,0.00023,7]
[311561584,1705246242123,-151.0,0.00023,7]
[311561585,1705246242132,-151.0,0.00023,7]
[311561586,1705246242141,-1273.934367,0.00023,7]
[311561587,1705246242150,-1273.934367,0.00023,7]
[311561588,1705246242159,-1273.934367,0.00023,7]
[311561589,1705246242168,-1273.934367,0.00023,7]
[311561590,1705246242178,-323.04,0.00023,2]
[311561591,1705246242186,-161.035793,0.00023,7]
[311561592,1705246242196,-252.0,0.00023,7]
[311561593,1705246242205,-252.0,0.00023,7]
[311561594,1705246242214,-252.0,0.00023,7]
[311561595,1705246242223,-252.0,0.00023,7]
[311561596,1705246242231,-185.9964415,0.00023012,2]
[311561597,1705246242240,-749.51916,0.00023012,2]
[311561598,1705246242250,-151.49,0.00023065,2]
[311561599,1705246242261,-1460.07878856,0.00023088,2]
[311561600,1705246242270,-161.31,0.00023108,2]
[311561601,1705246242279,-1203.11914152,0.00023115,2]
[311561602,1705246242288,-500.0,0.00023145,2]
[311561603,1705246242297,-151.49,0.0002321,2]
[311561604,1705246242306,-2000.0,0.0002323,2]
[311561605,1705246242315,-200.0,0.0002323,2]
[311561606,1705246242324,-2000.0,0.0002323,2]
[311561607,1705246242333,-200.0,0.0002323,2]
[311561608,1705246242342,-231.50421267,0.00023288,2]
[311561609,1705246242352,-500.0,0.00023288,2]
[311561610,1705246242361,-500.0,0.00023288,2]
[311561611,1705246242370,-500.0,0.00023288,2]
[311561612,1705246242379,-500.0,0.00023288,2]
[311561613,1705246242388,-500.0,0.00023288,2]
[311561614,1705246242397,-204.19617202,0.00023288,2]
[311561615,1705246242406,-500.0,0.00023288,2]
[311561616,1705246242415,-500.0,0.00023288,2]
[311561617,1705246242424,-500.0,0.00023288,2]
[311561618,1705246242433,-500.0,0.00023288,2]
[311561619,1705246242443,-500.0,0.00023288,2]
[311561620,1705246242452,-500.0,0.00023288,2]
[311561621,1705246242462,-500.0,0.00023288,2]
[311561622,1705246242471,-500.0,0.00023288,2]
[311561623,1705246242480,-500.0,0.00023288,2]
[311561624,1705246242489,-500.0,0.00023288,2]
[311561625,1705246242498,-500.0,0.00023288,2]
[311561626,1705246242508,-500.0,0.00023288,2]
[311561627,1705246242517,-500.0,0.00023288,2]
[311561628,1705246242526,-500.0,0.00023288,2]
[311561629,1705246242534,-227.03505637,0.00023288,2]
[311561630,1705246242548,-500.0,0.00023288,2]
[311561631,1705246242557,-517.68436735,0.00023288,2]
[311561632,1705246242567,-500.0,0.00023288,2]
[311561633,1705246242576,-281.6784688,0.00023288,2]
[311561634,1705246242585,-500.0,0.00023288,2]
[311561635,1705246242595,-400.0,0.00023288,2]
[311561636,1705246242604,-208.79726874,0.00023288,2]
[311561638,1705246242613,-302.98104532,0.00023288,2]
[311561639,1705246242623,-598.96148672,0.00023288,4]
[311561640,1705246242633,-500.0,0.00023288,4]
[311561641,1705246242642,-500.0,0.00023288,4]
[311561642,1705246242651,-401.46373454,0.00023288,4]
[311561643,1705246242661,-500.0,0.00023309,2]
[311561644,1705246242670,-151.49,0.00023355,2]
[311561646,1705246242680,-2000.0,0.00023462,2]
[311561648,1705246242689,-200.0,0.00023462,2]
[311561649,1705246242699,-2000.0,0.00023462,2]
[311561650,1705246242708,-200.0,0.00023462,2]
[311561651,1705246242717,-500.0,0.00023473,2]
[311561652,1705246242727,-151.49,0.00023501,2]
[311561653,1705246242736,-163.82,0.00023525,2]
[311561654,1705246242745,-206.0,0.00023599,2]